Cogmind - Beta 14 @@@ ROGUE MODE // 2025.03.24 @ 12:57:45 // Winter2019/RPGLIKE Player: Lava Result: Destroyed by G-34 Mercenary with Small Laser Performance ------------- Evolutions (0) 0 Regions Visited (2) 400 Robots Destroyed (20) 100 Value Destroyed (329) 329 Prototype IDs (2) 40 Alien Tech Used (0) 0 Bonus (39) 39 TOTAL SCORE: 908 Bonus ------- Follower Combat Kills 39 Cogmind --------- Core Integrity 0/600 Matter 206/300 Energy 265/265 System Corruption 1% Temperature Cool (46) Movement Treading (160) Location -10/Mines Parts ------- > --- POWER (1) -------- Improved Ion Engine > --- PROPULSION (2) --- Light Treads Light Treads > --- UTILITY (2) ------ Sensor Array Signal Interpreter > --- WEAPON (2) ------- Autogun Autogun > --- INVENTORY (3) ---- Visual Processing Unit Enhanced Flamer Heavy Hammer Peak State ------------ > --- POWER ------------ Improved Ion Engine > --- PROPULSION ------- Light Treads Light Treads > --- UTILITY ---------- Sensor Array Signal Interpreter > --- WEAPON ----------- Autogun Autogun > --- INVENTORY -------- Ion Engine Heat Sink Visual Processing Unit [Rating: 10] Favorites ----------- Power Improved Ion Engine Engine Improved Ion Engine Propulsion Light Treads Treads Light Treads Utility Signal Interpreter Device Sensor Array Processor Signal Interpreter Weapon Autogun Energy Gun Small Laser Ballistic Gun Autogun Build | -11 -10 -10 ------- Run | Yrd Mat Min Slots Evolved 3 | 3 . . Power . | . . . Propulsion 1 | 1 . . Utility 1 | 1 . . Weapon 1 | 1 . . Parts Attached 12 | 5 7 . Power 2 | 1 1 . Engine 2 | 1 1 . Core . | . . . Reactor . | . . . Propulsion 2 | 2 . . Treads 2 | 2 . . Leg . | . . . Wheel . | . . . Hover . | . . . Flight . | . . . Utility 2 | . 2 . Device 1 | . 1 . Storage . | . . . Processor 1 | . 1 . Hackware . | . . . Protection . | . . . Artifact . | . . . Weapon 6 | 2 4 . Energy Gun 2 | 2 . . Energy Cannon . | . . . Ballistic Gun 4 | . 4 . Ballistic Cannon . | . . . Launcher . | . . . Special Weapon . | . . . Impact Weapon . | . . . Slashing Weapon . | . . . Piercing Weapon . | . . . Special Melee Weapon . | . . . Unidentified Prototypes . | . . . Parts Lost . | . . . Power . | . . . Propulsion . | . . . Utility . | . . . Weapon . | . . . Highest Loss Streak . | . . . To Critical Strikes . | . . . Average Slot Usage (%) 93 | . 91 100 Engine 11 | . 11 14 Treads 28 | . 28 28 Device 11 | . 11 14 Processor 11 | . 11 14 Energy Gun 15 | . 18 . Ballistic Gun 12 | . 9 28 Peak Build Rating 10 | 5 10 10 Average Rating 7 | 3 7 10 On Entrance 5 | . 5 10 Naked Turns . | . . . Heaviest Build 14 | 8 14 14 Greatest Support 40 | 40 40 40 Greatest Overweight (x) . | . . . Average Overweight (x) . | . . . Largest Inventory Capacity 3 | 3 3 3 Average Capacity 2 | 2 3 3 Most Carried 3 | 3 3 3 Average Carried 2 | . 2 2 Final Capacity 3 | 3 3 3 Final Carried 3 | . 3 3 Class Distribution -------------------- 100% | Mutant Dominant Class ---------------- Mutant | -10/Materials Mutant | -10/Mines Resources | -11 -10 -10 ----------- Run | Yrd Mat Min Matter Collected 483 | 250 146 87 Remotely . | . . . Salvage Created 459 | . 369 90 Parts 40 | . 35 5 Haulers Intercepted 1 | . 1 . Recyclers Shooed . | . . . Parts Field Recycled . | . . . Retrieved Matter . | . . . Parts Self-Destructed . | . . . Prevented . | . . . Kills | -11 -10 -10 ------- Run | Yrd Mat Min Combat Hostiles Destroyed 21 | . 13 8 Guns 20 | . 12 8 Classes Destroyed 6 | . 5 1 Hauler 1 | . 1 . Operator 1 | . 1 . Watcher 2 | . 2 . Swarmer 12 | . 9 3 Grunt 4 | . 4 . Assembled 5 | . . 5 Best Kill Streak 5 | . 4 5 Combat Bots Only 5 | . 3 5 Max Kills in Single Turn 2 | . 1 2 Gunslinging . | . . . Exploded . | . . . Melee . | . . . Uniques/NPCs Destroyed . | . . . Combat | -11 -10 -10 -------- Run | Yrd Mat Min Hostile Shots Fired 114 | . 71 43 Missed 27 | . 18 9 Damage Taken 1194 | . 528 666 Core 937 | . 414 523 Absorbed by Shields . | . . . Redirected to Core 850 | . 354 496 Core Remaining (%) 100 | 100 . . Volleys Fired 61 | . 47 14 Largest 2 | . 2 2 Hottest 90 | . 90 46 Shots Fired 119 | . 91 28 Gun 119 | . 91 28 Cannon . | . . . Launcher . | . . . Special . | . . . Kinetic 61 | . 33 28 Thermal 58 | . 58 . Explosive . | . . . Electromagnetic . | . . . Robot Hit Streak 13 | . 13 4 Robot Miss Streak 4 | . 4 2 Penetration Max . | . . . Secondary Targets 4 | . 1 3 Max Gunslinging Chain 1 | . 1 1 Shots Hit Robots 67 | . 51 16 Core Hits 33 | . 22 11 Critical Kills . | . . . Critical Parts Destroyed . | . . . Critical Strikes 1 | . 1 . Burn 1 | . 1 . Melee Attacks . | . . . Impact . | . . . Slashing . | . . . Piercing . | . . . Sneak Attacks . | . . . Combat Hostiles . | . . . Follow-up Attacks . | . . . Damage Inflicted 967 | . 655 312 Guns 961 | . 654 307 Cannons . | . . . Explosions . | . . . Melee . | . . . Ramming 6 | . 1 5 Kinetic 560 | . 253 307 Thermal 401 | . 401 . Explosive . | . . . Electromagnetic . | . . . Impact . | . . . Slashing . | . . . Piercing . | . . . Highest Corruption 1 | . 1 1 Average Corruption 1 | . 1 1 Corruption Purged . | . . . Corruption Blocked . | . . . Effects 6 | . 3 3 Message Errors 2 | . . 2 Matter Fused 2 | . 1 1 Energy Discharges 1 | . 1 . Weapon Failures 1 | . 1 . Overload Shots . | . . . Overflow Damage . | . . . Projectiles . | . . . Explosions . | . . . Melee . | . . . Knockbacks . | . . . Impact . | . . . Kinetic . | . . . Secondary . | . . . Self-Inflicted Damage . | . . . Shots . | . . . Rammed 2 | . 1 1 Targets Rammed 2 | . 1 1 Kicked . | . . . Crushed . | . . . Highest Temperature 210 | . 210 40 Average Temperature 39 | . 45 11 Received Heat Transfer 180 | . 108 72 Siege Activations . | . . . Robots Corrupted . | . . . Combat Hostiles . | . . . Parts Fried . | . . . Impact Corruptions . | . . . Robots Melted 1 | . 1 . Combat Hostiles 1 | . 1 . Parts Melted 3 | . 3 . Heat Transferred 1164 | . 1164 . Parts Sabotaged . | . . . Parts Stolen . | . . . Parts Stripped . | . . . Power Chain Reactions . | . . . Alert | -11 -10 -10 ------- Run | Yrd Mat Min Peak Influence 218 | . 218 132 Initial 46 | . . 46 Average 77 | . 72 114 Maximum Alert Level 1 | . 1 . Low Security (%) 91 | 100 88 100 Level 1 8 | . 11 . Level 2 . | . . . Level 3 . | . . . Level 4 . | . . . Level 5 . | . . . High Security . | . . . Max Security . | . . . Squads Dispatched 2 | . 2 . Investigation 1 | . 1 . Extermination . | . . . Reinforcement 1 | . 1 . Assault . | . . . Garrison . | . . . Intercept . | . . . Searches Triggered . | . . . Construction Impeded . | . . . Haulers Reinforced . | . . . Active Scanning Responses . | . . . Cargo Convoy Interrupts . | . . . Stealth | -11 -10 -10 --------- Run | Yrd Mat Min Distress Signals . | . . . Communications Jammed . | . . . Distress Signals . | . . . Times Spotted 36 | . 26 10 Peak Tracking Total 5 | . 4 5 Tactical Retreats 1 | . 1 . Traps | -11 -10 -10 ------- Run | Yrd Mat Min Traps Triggered 4 | . 4 . Indirectly . | . . . Trap Hack Attempts . | . . . Triggered . | . . . Disarmed 10 | . 10 . Reprogrammed . | . . . Reused . | . . . Traps Extracted . | . . . Installed . | . . . Triggered . | . . . Machines | -11 -10 -10 ---------- Run | Yrd Mat Min Machines Disabled 1 | . 1 . Max in Single Turn 1 | . 1 . Machines Repaired . | . . . Machines Dismantled . | . . . Machines Sabotaged . | . . . Overloaded Fab Kills . | . . . Hacking | -11 -10 -10 --------- Run | Yrd Mat Min Machines Accessed 6 | . 6 . Terminals 6 | . 6 . Fabricators . | . . . Repair Stations . | . . . Recycling Units . | . . . Scanalyzers . | . . . Garrison Access . | . . . Total Hacks 17 | . 17 . Successful 6 | . 6 . Failed 11 | . 11 . Catastrophic 2 | . 2 . Database Lockouts . | . . . Manual 12 | . 12 . Terminals 17 | . 17 . Fabricators . | . . . Repair Stations . | . . . Recycling Units . | . . . Scanalyzers . | . . . Garrison Access . | . . . Terminal Hacks 6 | . 6 . Prototype ID Bank 1 | . 1 . Emergency Access Points 1 | . 1 . Locate Traps 1 | . 1 . Disarm Traps 3 | . 3 . Fabricator Hacks . | . . . Repair Station Hacks . | . . . Recycling Unit Hacks . | . . . Scanalyzer . | . . . Garrison Access Hacks . | . . . Unauthorized Hacks . | . . . Terminals . | . . . Fabricators . | . . . Repair Stations . | . . . Recycling Units . | . . . Scanalyzers . | . . . Garrison Access . | . . . Data Cores Recovered . | . . . Used . | . . . Hacking Detections 6 | . 6 . Full Trace Events 2 | . 2 . Feedback Events . | . . . Feedback Blocked . | . . . Robot Schematics Acquired . | . . . Robots Built . | . . . Authchips . | . . . Time . | . . . Total Robot Build Rating . | . . . Part Schematics Acquired . | . . . Parts Built . | . . . Authchips . | . . . Time . | . . . Total Part Build Rating . | . . . Parts Repaired . | . . . Time . | . . . Parts Recycled . | . . . Recycled Matter . | . . . Retrieved Matter . | . . . Retrieved Components . | . . . Parts Scanalyzed . | . . . Part Schematics Acquired . | . . . Parts Damaged . | . . . Bothacking | -11 -10 -10 ------------ Run | Yrd Mat Min Used RIF Installer . | . . . Robots Hacked . | . . . Non-combat . | . . . Combat . | . . . Robot Hacks Applied . | . . . Relay Couplers Released . | . . . Fabnet Peak Effective % . | . . . Robots Rewired . | . . . Allies Hacked . | . . . Hacks Repelled . | . . . Allies | -11 -10 -10 -------- Run | Yrd Mat Min Total Allies 2 | . . 2 Largest Group 2 | . . 2 Highest-Rated Group 49 | . . 49 Highest-Rated Ally 31 | . . 31 Total Orders . | . . . Ally Attacks 7 | . . 7 Total Damage 105 | . . 105 Kills 1 | . . 1 Allies Corrupted . | . . . Allies Melted . | . . . Intel | -11 -10 -10 ------- Run | Yrd Mat Min Robot Analysis Total . | . . . Derelict Logs Recovered . | . . . Drone Launches . | . . . Drone Recoveries . | . . . Exploration | -11 -10 -10 ------------- Run | Yrd Mat Min Turns Passed 1686 | 59 1327 300 Spaces Moved 916 | 34 722 160 Core 4 | 4 . . Treads 912 | 30 722 160 Legs . | . . . Wheels . | . . . Hover . | . . . Flight . | . . . Fastest Speed 50 | 50 160 160 Average Speed 159 | 147 160 160 Slowest Speed 160 | 160 160 160 Overloaded Moves . | . . . Propulsion Burnouts . | . . . Robots Hopped . | . . . Cave-ins Triggered . | . . . Exploration Rate (%) 48 | 3 97 44 Regions Visited 2 Branch Regions 1 Pre-discovered Areas 1 | . . 1 Known Exits Taken 1 | . 1 . Unknown Exits Taken 1 | 1 . . Scrap Searched 2 | . . 2 Spaces Dug . | . . . Terrain Destroyed . | . . . Melee . | . . . Projectile . | . . . AOE . | . . . Terrain Rammed . | . . . Walls Destroyed . | . . . Machines Disabled . | . . . Actions | -11 -10 -10 --------- Run | Yrd Mat Min Total 1032 | 43 806 183 Wait 11 | 1 8 2 Move 914 | 33 721 160 Hop . | . . . Pick Up 11 | 4 6 1 Fast Attach 4 | 1 3 . Attach 6 | 4 2 . Detach . | . . . Swap 2 | . 2 . Drop 2 | . 1 1 Fire 61 | . 47 14 Melee . | . . . Ram . | . . . Kick . | . . . Crush 2 | . 1 1 Escape Stasis . | . . . Rewire . | . . . Trap . | . . . Miscellaneous 19 | . 15 4 Route ------- -11/Scrapyard -10/Materials (discovered 4 exits: *Mat x3 / *Min) -10/Mines History --------- Turn | Location | Event 2 | -11/Scrapyard | Upgraded with Propulsion slot (x1) 2 | -11/Scrapyard | Upgraded with Utility slot (x1) 2 | -11/Scrapyard | Upgraded with Weapon slot (x1) 11 | -11/Scrapyard | Discovered new exit (range 15) 60 | -11/Scrapyard | Entered Materials 327 | -10/Materials | Build established: Mutant 551 | -10/Materials | Discovered new exit (range 10) 583 | -10/Materials | Identified exit to Materials 616 | -10/Materials | Discovered new exit (range 6) 626 | -10/Materials | Identified exit to Mines 948 | -10/Materials | Discovered exit to Materials (range 15) 1105 | -10/Materials | Reached level 2 1152 | -10/Materials | Discovered exit to Materials (range 12) 1387 | -10/Materials | Entered Mines 1436 | -10/Mines | Learned location of Storage (-9) 1540 | -10/Mines | Assembled infested the area 1604 | -10/Mines | Core integrity fell below 50% 1614 | -10/Mines | Core integrity fell below 20% 1676 | -10/Mines | A weapon hastily lodged in a ceiling crevice suddenly fell to the ground 1687 | -10/Mines | Destroyed by G-34 Mercenary with Small Laser Last Messages --------------- 01591_ U-05 Engineer lays Concrete. 01592_ U-05 Engineer destroyed. 01597_ as-64390 destroyed. 01602_ as-85088 destroyed. 01607_ The unstable cave ceiling collapses. 01610_ as-97398 destroyed. 01610_ Switching to secondary target: as-49799. 01615_ as-49799 destroyed. 01615_ Switching to secondary target: as-95516. 01618_ as-95516 destroyed. 01622_ K-01 Serf collects debris. 01628_ U-05 Engineer lays Concrete. 01629_ TDUWC=QODV6/BU6FNDPQIUXJI=H4X4:J 01652_ Slammed into T-07 Excavator. 01676_ An Enh. Flamer has been hastily shoved under some rubble with a note attached: "One is never enough." 01678_ Dropped Ion Engine. 01680_ Acquired Enh. Flamer. 01686_ R-06 Scavenger collects Ion Engine. Map ----- +----------------------------------------------------+ | ????## ## x ##### ####?????????? | | ????# ##????????? | | ???# ### #????????? | | ???# #?## ##### #????????? | | ???# ## #??## x ##???# #????????? | | ????? ???## #???#=!##????## #???????? | | ??????# ?????## ##???#=%#??????# #???????? | | ?????????x????# ##????#! #??????## ##???????? | | ?????????????## #?????# #???????####????????? | | ?????????x???# #?????# ???????????????????? | | ?????????????# #?????####???????????????????? | | ?????????????## ##????????????????????????????? | | ??????????????# ##??????????????x?x??x?????????? | | ??????????????# #??????????????????????????????? | | ??????????????# #??????????????????????????????? | | ??????????????# #??????????????????????????????? | | ??????????????# #??????????????????????????????? | | ??????????????# #??????????????????????????????? | | ??????????????# #??????????????????????????????? | | ??????????????# #?????#####????????????????????? | | ??????????????# #???### ##???????????????????? | | ??????????????# ##### ###?????????????????? | | ??????????????# ##????????????????? | | ??????????????# #????????????????? | | ??????????????##### ##???x???????????? | | ???????x??????????## @ r #???????????????? | | ???????????????????## t #??????????????? | | ????????????????x gg ## ??????????? | | ????????????????##### #####?? ???????? | | ????????????????????# #??????? #####??????? | | ????????????????????# #????????? ##??????????? | | ????????????????????# #??????????##???????????? | | ???????????????????? ???????????????????????? | | ???????????????????? ???????????????????????? | | ??????????????????? ??????????????????????? | | ??????????????????? ??????????????????????? | | ??????????????????#######?????????????????x????? | | ???????????????????????????????????????????????? | | ???????????????????????????????????????????????? | | ???????????????????????????????????????????????? | | | | | | | | | | | | | | | | | | | | | +----------------------------------------------------+ Best States ------------- Heat Dissipation 25 Energy Generation 12 Energy Capacity 265 Matter Stores 300 Matter Capacity 300 Sight Range 16 Robot Scan Range 32 Terrain Scan Density 10 Evasion (%) 40 Recoil Reduction 2 Item Schematics ----------------- None Robot Schematics ------------------ None Fabricated ------------ Nothing Alien Tech Used ----------------- None Achievements -------------- None Challenges ------------ None RPGLIKE | -11 -10 -10 --------- Run | Yrd Mat Min Levels Raised 1 | . 1 . XP Earned 5739 | 3000 1765 974 XP Spent 4350 | 3000 1350 . Upgrades 15 | 6 9 . Propulsion Slot 1 | 1 . . Utility Slot 1 | 1 . . Weapon Slot 1 | 1 . . Inventory Capacity 3 | 3 . . Sensor Range 9 | . 9 . Protomatter Created 152 | . 105 47 Integrity Restored 368 | . 311 57 Core 332 | . 275 57 Parts 36 | . 36 . Protomatter Decayed 17 | . . 17 Game ------ Seed MobileMicrodissipatorArray Manual? 0 Play Time 00:12:05 Cumulative 32.9 hours Start 2025.03.24 @ 12:47:37 End 2025.03.24 @ 12:57:45 Sessions 1 Manual Loads 0 Difficulty Rogue Special Mode Winter2019/RPGLIKE Game No. 56 Rogue 56 Adventurer 0 Explorer 0 Win Type - Total 0 Types 0/0/0/0/0/0/0/0/0 Lore% 13 Gallery% 25 Achievement% 28 Wizard Run 0 Options --------- Layout 0 ASCII 0 Keyboard 0 Movement Mouse Keybinds 0 Fullscreen 1 Font 24/Smallcaps Map View 76x56 Zoom Use 0% Tactical HUD 1 Map Filters NONE Filters NONE Steam 1 RUN: 7a910f44-c7cb-4af8-97d8-a96922b65225